fUSD/lending_fUSD_20260213
["ID","MTS","AMOUNT","RATE_DAILY","PERIOD"]
[405309570,1770973845912,-1000.0,0.00034298,2]
[405309571,1770973845921,-1000.0,0.00034298,2]
[405309572,1770973845932,-152.0,0.00034389,9]
[405309573,1770973845942,-1000.0,0.00034621,2]
[405309574,1770973845952,-9717.0,0.00034654,5]
[405309575,1770973845962,-1500.0,0.00034795,2]
[405309576,1770973845973,-160.12,0.000348,30]
[405309577,1770973845983,-1048.59,0.000348,14]
[405309578,1770973845993,-639.29,0.000349,14]
[405309579,1770973846003,-160.0,0.00035,120]
[405309580,1770973846012,-750.0,0.00035,2]
[405309581,1770973846022,-152.0,0.00035014,10]
[405309582,1770973846031,-179.04905926,0.00035589,120]
[405309583,1770973846040,-500.0,0.00035616,120]
[405309584,1770973846051,-2385.0,0.00035616,120]
[405309585,1770973846061,-2367.0,0.00035616,120]
[405309586,1770973846070,-2478.0,0.00035616,120]
[405309587,1770973846080,-1254.26,0.00035616,2]
[405309588,1770973846089,-152.0,0.00035638,11]
[405309589,1770973846099,-3488.0,0.0003582,2]
[405309590,1770973846109,-617.0,0.0003582,2]
[405309591,1770973846121,-918.0,0.0003582,2]
[405309592,1770973846131,-2450.0,0.0003582,2]
[405309593,1770973846140,-977.75335,0.00035888,30]
[405309594,1770973846150,-1572.86,0.000359,14]
[405309595,1770973846161,-2000.0,0.000359,2]
[405309596,1770973846171,-514.47,0.00036,30]
[405309598,1770973846180,-343.0,0.00036,2]
[405309600,1770973846190,-977.75335,0.00036088,30]
[405309602,1770973846199,-150.76,0.00036172,10]
[405309604,1770973846209,-639.29,0.000362,14]
[405309605,1770973846218,-152.0,0.00036262,12]
[405309606,1770973846228,-977.75335,0.00036288,30]
[405309607,1770973846239,-72570.33881666,0.0003648,2]
[405309608,1770973846248,-977.75335,0.00036488,30]
[405309609,1770973846258,-977.75335,0.00036688,30]
[405309610,1770973846268,-1048.59,0.000367,14]
[405309611,1770973846277,-514.47,0.0003672,30]
[405309612,1770973846287,-152.0,0.00036887,13]
[405309613,1770973846296,-3259.1778,0.00036888,7]
[405309614,1770973846307,-977.75335,0.00036888,30]
[405309615,1770973846317,-171.0,0.000369,120]
[405309616,1770973846327,-13095.69964323,0.00037,4]
[405309618,1770973846336,-977.75335,0.00037088,30]
[405309620,1770973846345,-308.0,0.000372,2]
[405309621,1770973846355,-302.0,0.000372,2]
[405309622,1770973846365,-188.38143115,0.000372,120]
[405309623,1770973846375,-977.75335,0.00037288,30]
[405309624,1770973846384,-591.31,0.00037299,120]
[405309625,1770973846394,-1197.3,0.00037299,120]
[405309626,1770973846404,-1137.19,0.00037299,120]
[405309627,1770973846413,-1410.82,0.00037299,120]
[405309628,1770973846423,-1438.79,0.00037299,120]
[405309629,1770973846432,-514.47,0.0003744,30]
[405309630,1770973846441,-977.75335,0.00037488,30]
[405309631,1770973846451,-722.32,0.00037499,120]
[405309632,1770973846461,-981.7,0.00037499,30]
[405309633,1770973846470,-500.0,0.00037499,120]
[405309634,1770973846479,-500.0,0.00037499,30]
[405309635,1770973846489,-691.13,0.00037499,30]
[405309636,1770973846499,-615.27,0.00037499,120]
[405309637,1770973846509,-500.0,0.00037499,120]
[405309638,1770973846519,-529.45,0.00037499,120]
[405309639,1770973846529,-500.0,0.00037499,18]
[405309640,1770973846539,-1572.86,0.000375,14]
[405309641,1770973846549,-639.29,0.000375,14]
[405309642,1770973846564,-152.0,0.00037511,14]
[405309643,1770973846574,-977.75335,0.00037688,30]
[405309644,1770973846584,-977.75335,0.00037888,30]
[405309645,1770973846595,-160.0,0.00038,30]
[405309646,1770973846605,-977.75335,0.00038088,30]
[405309647,1770973846614,-152.0,0.00038136,15]
[405309648,1770973846624,-514.47,0.0003816,30]
[405309649,1770973846633,-977.75335,0.00038288,30]
[405309650,1770973846643,-1999.0,0.00038356,120]
[405309651,1770973846653,-500.0,0.00038356,120]
[405309652,1770973846662,-977.75335,0.00038488,30]
[405309653,1770973846672,-977.75335,0.00038688,30]
[405309654,1770973846681,-500.0,0.000387,120]
[405309655,1770973846691,-1048.59,0.000387,14]
[405309656,1770973846701,-639.29,0.000387,14]
[405309657,1770973846710,-171.0,0.00038745,120]
[405309658,1770973846719,-152.0,0.0003876,16]
[405309659,1770973846729,-1572.86,0.000388,14]
[405309660,1770973846738,-3488.0,0.0003882,2]
[405309661,1770973846748,-617.0,0.0003882,2]
[405309662,1770973846757,-918.0,0.0003882,2]
[405309663,1770973846767,-2450.0,0.0003882,2]
[405309664,1770973846777,-514.47,0.0003888,120]
[405309665,1770973846786,-977.75335,0.00039088,30]
[405309666,1770973846796,-1999.0,0.00039178,120]
[405309667,1770973846808,-977.75335,0.00039288,30]
[405309669,1770973846818,-152.0,0.00039384,17]
[405309670,1770973846827,-977.75335,0.00039488,30]
[405309671,1770973846836,-16502.27179484,0.00039588,2]
[405309672,1770973846845,-742.30250523,0.00039588,8]
[405309673,1770973846855,-17453.2183129,0.00039588,2]
[405309674,1770973846864,-1163.50066523,0.00039588,2]
[405309675,1770973846873,-321.63231968,0.00039588,2]
[405309676,1770973846882,-588.00316039,0.000396,2]
[405309677,1770973846895,-1411.99683961,0.000396,2]
[405309678,1770973846904,-151.0,0.00039678,14]
[405309679,1770973846914,-722.32,0.0003968,120]
[405309680,1770973846924,-722.32,0.0003968,120]
[405309681,1770973846934,-722.32,0.0003968,120]
[405309682,1770973846943,-722.32,0.0003968,120]
[405309683,1770973846953,-722.32,0.0003968,120]
[405309684,1770973846962,-722.45486272,0.0003968,120]
[405309685,1770973846971,-591.31,0.0003968,120]
[405309686,1770973846980,-591.31,0.0003968,120]
[405309687,1770973846990,-591.31,0.0003968,120]
[405309688,1770973846999,-591.31,0.0003968,120]
[405309689,1770973847008,-591.40700258,0.0003968,120]
[405309690,1770973847017,-1197.3,0.0003968,120]
[405309691,1770973847027,-1197.3,0.0003968,120]
[405309692,1770973847036,-1197.3,0.0003968,120]
[405309693,1770973847045,-1197.3,0.0003968,120]
[405309694,1770973847055,-1197.32571045,0.0003968,120]
[405309695,1770973847064,-1137.19,0.0003968,120]
[405309696,1770973847074,-1137.19,0.0003968,120]
[405309697,1770973847083,-1137.19,0.0003968,120]
[405309698,1770973847093,-1137.19,0.0003968,120]
[405309699,1770973847102,-1137.37012897,0.0003968,120]
[405309700,1770973847112,-1410.82,0.0003968,120]
[405309701,1770973847125,-1410.82,0.0003968,120]
[405309702,1770973847135,-1410.82,0.0003968,120]
[405309703,1770973847144,-1410.82,0.0003968,120]
[405309704,1770973847153,-1411.00509654,0.0003968,120]
[405309705,1770973847165,-981.7,0.0003968,30]
[405309706,1770973847176,-981.7,0.0003968,30]
[405309707,1770973847185,-981.7,0.0003968,30]
[405309708,1770973847196,-981.7,0.0003968,30]
[405309709,1770973847206,-981.7,0.0003968,30]
[405309710,1770973847215,-981.769748,0.0003968,30]
[405309711,1770973847225,-500.0,0.0003968,120]
[405309712,1770973847234,-500.0,0.0003968,120]
[405309713,1770973847244,-500.0,0.0003968,120]
[405309714,1770973847253,-313.3815855,0.0003968,120]
[405309715,1770973847263,-500.0,0.0003968,30]
[405309716,1770973847273,-500.0,0.0003968,30]
[405309717,1770973847282,-500.0,0.0003968,30]
[405309718,1770973847291,-190.05419818,0.0003968,30]
[405309719,1770973847301,-691.13,0.0003968,30]
[405309720,1770973847310,-691.13,0.0003968,30]
[405309721,1770973847319,-691.13,0.0003968,30]
[405309722,1770973847329,-691.13,0.0003968,30]
[405309723,1770973847339,-691.13,0.0003968,30]
[405309724,1770973847348,-691.31442771,0.0003968,30]
[405309725,1770973847357,-615.27,0.0003968,120]
[405309726,1770973847367,-615.27,0.0003968,120]
[405309727,1770973847376,-615.27,0.0003968,120]
[405309728,1770973847386,-615.27,0.0003968,120]
[405309729,1770973847396,-615.27,0.0003968,120]
[405309730,1770973847405,-615.33754888,0.0003968,120]
[405309731,1770973847415,-500.0,0.0003968,120]
[405309732,1770973847424,-500.0,0.0003968,120]
[405309733,1770973847433,-500.0,0.0003968,120]
[405309734,1770973847443,-495.54112114,0.0003968,120]
[405309735,1770973847453,-529.45,0.0003968,120]
[405309736,1770973847464,-529.45,0.0003968,120]
[405309737,1770973847484,-529.45,0.0003968,120]
[405309738,1770973847504,-529.45,0.0003968,120]
[405309739,1770973847515,-529.45,0.0003968,120]
[405309740,1770973847524,-529.67601554,0.0003968,120]
[405309741,1770973847534,-1438.79,0.0003968,120]
[405309742,1770973847543,-1438.79,0.0003968,120]
[405309743,1770973847553,-1438.79,0.0003968,120]
[405309744,1770973847563,-1438.79,0.0003968,120]
[405309745,1770973847572,-1438.88770196,0.0003968,120]
[405309746,1770973847582,-500.0,0.0003968,18]
[405309747,1770973847632,-500.0,0.0003968,18]
[405309748,1770973847641,-500.0,0.0003968,18]
[405309749,1770973847650,-459.69931234,0.0003968,18]
[405309750,1770973847660,-207048.60228079,0.00039681,2]
[405309751,1770973847673,-1254.41808677,0.00039681,2]
[405309752,1770973848047,-166.66792853,0.00013673,2]
[405309753,1770973848059,-500.0,0.00013673,2]
[405309754,1770973848069,-1000.0,0.00014221,2]
[405309755,1770973848079,-884.25817303,0.00014768,2]
[405309756,1770973848088,-596.02960806,0.00016173,2]
[405309757,1770973848098,-500.0,0.00016173,2]
[405309758,1770973848107,-1000.0,0.00016721,2]
[405309759,1770973848121,-501.25973348,0.00017268,2]
[405309760,1770973848131,-1591.11100679,0.00017434,2]
[405309761,1770973848141,-150.0,0.0002589,2]
[405309762,1770973848151,-10823.76842376,0.00026399,2]
[405309763,1770973848161,-150.0,0.00027185,2]
[405309764,1770973848171,-150.0,0.00028544,2]
[405309765,1770973848182,-10823.76842371,0.00029959,2]
[405309766,1770973848193,-150.0,0.00029971,2]
[405309767,1770973848203,-150.0,0.0003147,2]
[405309768,1770973848213,-150.0,0.00033043,2]
[405309769,1770973848223,-10823.76842371,0.00033519,2]
[405309770,1770973848232,-45785.51588125,0.00036827,2]
[405309771,1770973848242,-10823.76842371,0.00037078,2]
[405309772,1770973848252,-1095261.66493244,0.00039681,2]
[405309773,1770973848262,-977.75335,0.00039688,30]
[405309774,1770973848271,-77777.82706922,0.00039781,7]
[405309775,1770973848282,-639.29,0.000398,14]
[405309776,1770973848292,-1700.0,0.000398,14]
[405309777,1770973848304,-1558.68796301,0.00039881,2]
[405309778,1770973848314,-301.02860324,0.00039881,2]
[405309779,1770973848325,-300.52729027,0.00039881,2]
[405309780,1770973848335,-300.0,0.00039881,2]
[405309781,1770973848345,-301.20809281,0.00039881,2]
[405309782,1770973848355,-576.15633388,0.00039881,2]
[405309783,1770973848365,-1558.68796301,0.00039881,2]
[405309784,1770973848375,-371.94213864,0.00039881,2]
[405309785,1770973848385,-300.0,0.00039881,2]
[405309786,1770973848395,-300.0,0.00039881,2]
[405309787,1770973848406,-300.0,0.00039881,2]
[405309788,1770973848415,-300.0,0.00039881,2]
[405309789,1770973848425,-300.0,0.00039881,2]
[405309790,1770973848434,-977.75335,0.00039888,30]
[405309791,1770973848443,-1000.0,0.00039891,14]
[405309792,1770973848453,-1314.08050614,0.00039891,14]
[405309793,1770973848462,-2200.0,0.000399,14]
[405309794,1770973848473,-498.88350085,0.00039999,31]
[405309795,1770973848482,-280.60696054,0.00039999,31]
[405309796,1770973848492,-500.0,0.00039999,31]
[405309797,1770973848501,-500.0,0.00039999,31]
[405309798,1770973848511,-500.0,0.00039999,31]
[405309799,1770973848520,-500.0,0.00039999,31]
[405309800,1770973848530,-500.0,0.00039999,31]
[405309801,1770973848539,-500.0,0.00039999,31]
[405309802,1770973848549,-184.8165182,0.00039999,31]
[405309803,1770973848558,-500.0,0.00039999,31]
[405309804,1770973848567,-500.0,0.00039999,31]
[405309805,1770973848577,-500.0,0.00039999,31]
[405309806,1770973848587,-500.0,0.00039999,31]
[405309807,1770973848597,-500.0,0.00039999,31]
[405309808,1770973848606,-500.0,0.00039999,31]
[405309809,1770973848616,-500.0,0.00039999,31]
[405309810,1770973848627,-500.0,0.00039999,31]
[405309811,1770973848637,-500.0,0.00039999,31]
[405309812,1770973848647,-500.0,0.00039999,31]
[405309813,1770973848656,-500.0,0.00039999,31]
[405309814,1770973848665,-500.0,0.00039999,31]
[405309815,1770973848675,-359.33916418,0.00039999,31]
[405309816,1770973848684,-500.0,0.00039999,31]
[405309817,1770973848694,-500.0,0.00039999,31]
[405309818,1770973848704,-500.0,0.00039999,31]
[405309819,1770973848713,-500.0,0.00039999,31]
[405309820,1770973848724,-500.0,0.00039999,31]
[405309821,1770973848734,-500.0,0.00039999,31]
[405309822,1770973848744,-500.0,0.00039999,31]
[405309823,1770973848754,-500.0,0.00039999,31]
[405309824,1770973848764,-543.75,0.00039999,31]
[405309825,1770973848774,-543.75,0.00039999,31]
[405309826,1770973848783,-543.75,0.00039999,31]
[405309827,1770973848793,-543.75,0.00039999,31]
[405309828,1770973848803,-543.75,0.00039999,31]
[405309829,1770973848813,-543.75,0.00039999,31]
[405309830,1770973848823,-776.25,0.00039999,31]
[405309831,1770973848832,-315.02,0.0004,120]
[405309832,1770973848841,-594.66,0.0004,120]
[405309833,1770973848850,-206.71,0.0004,120]
[405309834,1770973848861,-291.54305096,0.0004,45]
[405309835,1770973848870,-151.0,0.0004,120]
[405309836,1770973848879,-151.0,0.0004,120]
[405309837,1770973848888,-1123.51,0.0004,30]
[405309838,1770973848898,-1999.0,0.0004,120]
[405309839,1770973848907,-150.0,0.0004,120]
[405309840,1770973848916,-41943.48,0.0004,2]
[405309841,1770973848926,-152.0,0.00040009,18]
[405309842,1770973848935,-977.75335,0.00040088,30]
[405309843,1770973848945,-1572.86,0.000401,14]
[405309844,1770973848954,-365.93929912,0.0004017,15]
[405309845,1770973848963,-977.75335,0.00040288,30]
[405309846,1770973848973,-1048.59,0.000403,14]
[405309847,1770973848982,-500.0,0.00040329,2]
[405309848,1770973848992,-72570.33881666,0.00040339,15]
[405309849,1770973849001,-8732.72,0.00040487,2]
[405309850,1770973849011,-977.75335,0.00040488,30]
[405309851,1770973849020,-45785.51588125,0.00040511,15]
[405309852,1770973849029,-213.4265565,0.00040561,7]
[405309853,1770973849039,-32832.125,0.000406,2]
[405309854,1770973849048,-1000.0,0.000406,2]
[405309855,1770973849058,-152.0,0.00040633,19]
[405309856,1770973849067,-10823.76842371,0.00040638,2]
[405309857,1770973849076,-977.75335,0.00040688,30]
[405309858,1770973849086,-639.29,0.000408,14]
[405309859,1770973849095,-151.0,0.000408,120]
[405309860,1770973849104,-1999.0,0.00040821,120]
[405309861,1770973849116,-977.75335,0.00040888,30]
[405309862,1770973849132,-151.0,0.000409,120]
[405309863,1770973849146,-1795.10053612,0.00041,30]
[405309864,1770973849155,-600.5276648,0.00041,30]
[405309865,1770973849166,-300.0,0.00041,120]
[405309866,1770973849177,-978.15807133,0.00041068,120]
[405309867,1770973849190,-300.0,0.00041068,22]
[405309868,1770973849200,-977.75335,0.00041088,30]
[405309869,1770973849210,-518.48802897,0.00041096,120]
[405309870,1770973849219,-152.0,0.00041258,20]
[405309871,1770973849232,-977.75335,0.00041288,30]
[405309872,1770973849243,-200.0,0.0004131,120]
[405309873,1770973849253,-1323.23953428,0.00041328,4]
[405309874,1770973849263,-977.75335,0.00041488,30]
[405309875,1770973849272,-1572.86,0.000415,14]
[405309876,1770973849285,-152.13,0.00041559,120]
[405309877,1770973849296,-152.14,0.00041559,120]
[405309878,1770973849307,-1999.0,0.00041643,120]
[405309879,1770973849317,-152.13,0.00041659,120]
[405309880,1770973849327,-152.14,0.00041659,120]
[405309881,1770973849338,-977.75335,0.00041688,30]
[405309882,1770973849348,-151.0,0.000417,120]
[405309883,1770973849357,-152.13,0.00041759,120]
[405309884,1770973849367,-152.14,0.00041759,120]
[405309885,1770973849378,-3488.0,0.0004182,2]
[405309886,1770973849389,-918.0,0.0004182,2]
[405309887,1770973849400,-2450.0,0.0004182,2]
[405309888,1770973849410,-152.17,0.00041859,120]
[405309889,1770973849419,-152.14,0.00041859,120]
[405309890,1770973849430,-152.0,0.00041882,21]
[405309891,1770973849441,-977.75335,0.00041888,30]
[405309892,1770973849451,-16502.27179484,0.00041893,2]
[405309893,1770973849463,-742.30250523,0.00041893,8]
[405309894,1770973849483,-17453.21831288,0.00041893,2]
[405309895,1770973849494,-1163.50066521,0.00041893,2]
[405309896,1770973849504,-321.63231967,0.00041893,2]
[405309897,1770973849514,-151.0,0.000419,120]
[405309898,1770973849533,-639.29,0.000419,14]
[405309899,1770973849548,-152.14,0.00041959,120]
[405309900,1770973849560,-928.82797361,0.0004199,7]
[405309901,1770973849575,-17419.31033229,0.00042,8]
[405309902,1770973849586,-321.0,0.00042,30]
[405309903,1770973849598,-300.0,0.00042,120]
[405309904,1770973849609,-20427.32,0.00042,120]
[405309905,1770973849624,-1048.59,0.00042,14]
[405309906,1770973849636,-1123.51,0.00042,30]
[405309907,1770973849648,-41943.48,0.00042,2]
[405309908,1770973849663,-152.14,0.00042059,120]
[405309909,1770973849683,-152.14,0.00042159,120]
[405309910,1770973849694,-746.0,0.00042237,30]
[405309911,1770973849703,-152.14,0.00042259,120]
[405309912,1770973849719,-2000.0,0.00042316,120]
[405309913,1770973849731,-2000.0,0.00042316,120]
[405309914,1770973849741,-2000.0,0.00042316,120]
[405309915,1770973849753,-152.14,0.00042359,120]
[405309916,1770973849764,-659.06,0.00042438,120]
[405309917,1770973849778,-1500.0,0.00042438,120]
[405309918,1770973849787,-350.0,0.00042444,5]
[405309919,1770973849801,-152.14,0.00042459,120]
[405309920,1770973849813,-1999.0,0.00042465,120]
[405309921,1770973849827,-151.0,0.000425,120]
[405309922,1770973849839,-152.0,0.00042506,22]
[405309923,1770973849853,-152.14,0.00042559,120]
[405309924,1770973849866,-659.06,0.00042575,120]
[405309925,1770973849877,-1572.86,0.000426,14]
[405309926,1770973849890,-500.0,0.00042655,60]
[405309927,1770973849900,-500.0,0.00042655,60]
[405309928,1770973849915,-500.0,0.00042655,60]
[405309929,1770973849930,-152.14,0.00042659,120]
[405309930,1770973849944,-305.94,0.000427,60]
[405309931,1770973849956,-659.06,0.00042712,120]
[405309932,1770973849969,-4000.0,0.0004274,14]
[405309933,1770973849982,-1000.0,0.0004274,120]
[405309934,1770973849995,-1000.0,0.0004274,120]
[405309935,1770973850008,-266.452,0.0004274,120]
[405309936,1770973850021,-200.0,0.00042751,120]
[405309937,1770973850032,-152.14,0.00042759,120]
[405309938,1770973850045,-151.0,0.000428,120]
[405309939,1770973850057,-659.06,0.00042849,120]
[405309940,1770973850069,-152.14,0.00042859,120]
[405309941,1770973850080,-1498.0641666,0.00042933,2]
[405309942,1770973850090,-152.14,0.00042959,120]
[405309943,1770973850102,-659.06,0.00042986,120]
[405309944,1770973850114,-300.0,0.00043,120]
[405309945,1770973850127,-350.0,0.00043019,7]
[405309946,1770973850139,-485.0,0.00043026,30]
[405309947,1770973850148,-152.14,0.00043059,120]
[405309948,1770973850161,-659.06,0.00043123,120]
[405309949,1770973850174,-152.0,0.00043131,23]
[405309950,1770973850186,-150.0,0.0004315,2]
[405309951,1770973850195,-1668.58678493,0.0004315,2]
[405309952,1770973850205,-152.14,0.00043159,120]
[405309953,1770973850216,-500.0,0.00043203,60]
[405309954,1770973850226,-152.14,0.00043259,120]
[405309955,1770973850237,-659.06,0.0004326,120]
[405309956,1770973850247,-151.0,0.00043282,10]
[405309957,1770973850259,-151.0,0.00043282,10]
[405309958,1770973850270,-151.0,0.00043282,10]
[405309959,1770973850280,-151.0,0.00043282,10]
[405309960,1770973850291,-151.0,0.00043282,10]
[405309961,1770973850302,-151.0,0.00043282,10]
[405309962,1770973850312,-151.0,0.00043282,10]
[405309963,1770973850324,-151.0,0.00043282,10]
[405309964,1770973850334,-151.0,0.00043282,10]
[405309965,1770973850344,-151.0,0.00043282,10]
[405309966,1770973850356,-151.0,0.00043282,10]
[405309967,1770973850367,-229.0,0.00043282,10]
[405309968,1770973850377,-500.0,0.00043287,120]
[405309969,1770973850387,-500.0,0.00043287,120]
[405309970,1770973850397,-500.0,0.00043287,120]
[405309971,1770973850407,-469.87429252,0.00043287,120]
[405309972,1770973850418,-1999.0,0.00043287,120]
[405309973,1770973850430,-768.0,0.000433,120]
[405309974,1770973850441,-2000.0,0.000433,2]
[405309975,1770973850451,-1000.0,0.00043343,21]
[405309976,1770973850462,-152.14,0.00043359,120]
[405309977,1770973850473,-659.06,0.00043397,120]
[405309978,1770973850483,-400.0,0.000434,15]
[405309979,1770973850493,-151.0,0.000434,120]
[405309980,1770973850503,-915.40895618,0.00043417,120]
[405309981,1770973850515,-152.14,0.00043459,120]
[405309982,1770973850525,-485.0,0.00043469,30]
[405309983,1770973850539,-3514.0,0.000435,120]
[405309984,1770973850551,-400.0,0.000435,15]
[405309985,1770973850562,-350.0,0.00043501,9]
[405309986,1770973850573,-659.06,0.00043534,120]
[405309987,1770973850583,-152.14,0.00043559,120]
[405309988,1770973850594,-150.0,0.000436,120]
[405309989,1770973850605,-400.0,0.000436,15]
[405309990,1770973850614,-152.14,0.00043659,120]
[405309991,1770973850624,-659.06,0.00043671,120]
[405309992,1770973850634,-752.0,0.00043685,30]
[405309993,1770973850644,-11300.69,0.000437,4]
[405309994,1770973850654,-321.0,0.000437,30]
[405309995,1770973850663,-1572.86,0.000437,14]
[405309996,1770973850674,-400.0,0.000437,15]
[405309997,1770973850686,-300.0,0.00043723,120]
[405309998,1770973850697,-300.0,0.00043723,120]
[405309999,1770973850709,-350.0,0.0004373,5]
[405310000,1770973850719,-500.0,0.00043751,60]
[405310001,1770973850729,-500.0,0.00043751,60]
[405310002,1770973850740,-500.0,0.00043751,60]
[405310003,1770973850751,-152.0,0.00043755,24]
[405310004,1770973850761,-152.14,0.00043759,120]
[405310005,1770973850771,-1000.0,0.000438,30]
[405310006,1770973850782,-151.0,0.000438,120]
[405310007,1770973850793,-431.33159854,0.000438,120]
[405310008,1770973850805,-988.0,0.000438,15]
[405310009,1770973850817,-659.06,0.00043808,120]
[405310010,1770973850826,-300.0,0.00043815,120]
[405310011,1770973850837,-300.0,0.00043815,120]
[405310012,1770973850847,-500.0,0.00043835,120]
[405310013,1770973850856,-500.0,0.00043835,120]
[405310014,1770973850865,-577.52407821,0.00043835,120]
[405310015,1770973850874,-839.0,0.00043835,120]
[405310016,1770973850884,-349.53153789,0.00043835,2]
[405310017,1770973850893,-647.33,0.00043835,120]
[405310018,1770973850902,-647.33,0.00043835,120]
[405310019,1770973850912,-647.33,0.00043835,120]
[405310020,1770973850921,-647.33,0.00043835,120]
[405310021,1770973850931,-647.33,0.00043835,120]
[405310022,1770973850940,-647.33,0.00043835,120]
[405310023,1770973850949,-647.33,0.00043835,120]
[405310024,1770973850959,-647.33,0.00043835,120]
[405310025,1770973850968,-647.33,0.00043835,120]
[405310026,1770973850977,-647.33,0.00043835,120]
[405310027,1770973850987,-647.33,0.00043835,120]
[405310028,1770973850996,-647.33,0.00043835,120]
[405310029,1770973851005,-647.33,0.00043835,120]
[405310030,1770973851015,-647.33,0.00043835,120]
[405310031,1770973851024,-647.33,0.00043835,120]
[405310032,1770973851034,-647.33,0.00043835,120]
[405310033,1770973851043,-647.33,0.00043835,120]
[405310034,1770973851053,-647.33,0.00043835,120]
[405310035,1770973851063,-647.33,0.00043835,120]
[405310036,1770973851072,-647.33,0.00043835,120]
[405310037,1770973851081,-647.33,0.00043835,120]
[405310038,1770973851091,-647.33,0.00043835,120]
[405310039,1770973851100,-647.33,0.00043835,120]
[405310040,1770973851110,-647.49734628,0.00043835,120]
[405310041,1770973851124,-500.0,0.00043835,120]
[405310042,1770973851134,-500.0,0.00043835,120]
[405310043,1770973851143,-500.0,0.00043835,120]
[405310044,1770973851153,-500.0,0.00043835,120]
[405310045,1770973851163,-500.0,0.00043835,120]
[405310046,1770973851172,-500.0,0.00043835,120]
[405310047,1770973851182,-500.0,0.00043835,120]
[405310048,1770973851192,-500.0,0.00043835,120]
[405310049,1770973851202,-500.0,0.00043835,120]
[405310050,1770973851212,-500.0,0.00043835,120]
[405310051,1770973851222,-500.0,0.00043835,120]
[405310052,1770973851231,-500.0,0.00043835,120]
[405310053,1770973851241,-500.0,0.00043835,120]
[405310054,1770973851251,-500.0,0.00043835,120]
[405310055,1770973851260,-500.0,0.00043835,120]
[405310056,1770973851270,-500.0,0.00043835,120]
[405310057,1770973851280,-500.0,0.00043835,120]
[405310058,1770973851290,-500.0,0.00043835,120]
[405310059,1770973851300,-500.0,0.00043835,120]
[405310060,1770973851310,-518.98655505,0.00043835,120]
[405310061,1770973851320,-1499.13,0.00043835,120]
[405310062,1770973851330,-1499.13,0.00043835,120]
[405310063,1770973851341,-1499.13,0.00043835,120]
[405310064,1770973851350,-1499.13,0.00043835,120]
[405310065,1770973851360,-1499.13,0.00043835,120]
[405310066,1770973851369,-1499.13,0.00043835,120]
[405310067,1770973851379,-1499.13,0.00043835,120]
[405310068,1770973851389,-1499.13,0.00043835,120]
[405310069,1770973851398,-1499.13,0.00043835,120]
[405310070,1770973851408,-1499.13,0.00043835,120]
[405310071,1770973851417,-1499.13,0.00043835,120]
[405310072,1770973851427,-1499.13,0.00043835,120]
[405310073,1770973851436,-1499.13,0.00043835,120]
[405310074,1770973851447,-1499.13,0.00043835,120]
[405310075,1770973851456,-1499.13,0.00043835,120]
[405310076,1770973851465,-1499.13,0.00043835,120]